Cogmind - Beta 15 @@@ ROGUE MODE // 2025.06.06 @ 16:34:36 // Winter2019/RPGLIKE Player: Jack Result: Self-destructed Performance ------------- Evolutions (3) 1500 Regions Visited (4) 800 Robots Destroyed (27) 135 Value Destroyed (913) 913 Prototype IDs (0) 0 Alien Tech Used (0) 0 Bonus (8) 8 TOTAL SCORE: 3356 Bonus ------- High Alert Combat Kills 8 Cogmind --------- Core Integrity 35/600 Matter 274/300 Energy 125/125 System Corruption 9% Temperature Cool (0) Movement Flying (40) Location -7/Factory Parts ------- > --- POWER (1) -------- Light Ion Engine > --- PROPULSION (2) --- Flight Unit > --- UTILITY (1) ------ (None) > --- WEAPON (2) ------- Light Assault Rifle > --- INVENTORY (0) ---- (None) Peak State ------------ > --- POWER ------------ Light Ion Engine > --- PROPULSION ------- Flight Unit Flight Unit > --- UTILITY ---------- (None) > --- WEAPON ----------- Light Assault Rifle Light Assault Rifle > --- INVENTORY -------- (None) [Rating: 5] Favorites ----------- Power Light Ion Engine Engine Light Ion Engine Propulsion Flight Unit Flight Unit Flight Unit Utility None Weapon Light Assault Rifle Energy Gun Medium Laser Ballistic Gun Light Assault Rifle Build | -11 -10 -9 -8 -7 ------- Run | Yrd Mat Mat Mat Fac Slots Evolved 2 | 2 . . . . Power . | . . . . . Propulsion 1 | 1 . . . . Utility . | . . . . . Weapon 1 | 1 . . . . Parts Attached 11 | 2 3 6 . . Power 1 | . . 1 . . Engine 1 | . . 1 . . Core . | . . . . . Reactor . | . . . . . Propulsion 4 | . . 4 . . Treads . | . . . . . Leg . | . . . . . Wheel . | . . . . . Hover . | . . . . . Flight 4 | . . 4 . . Utility . | . . . . . Device . | . . . . . Storage . | . . . . . Processor . | . . . . . Hackware . | . . . . . Protection . | . . . . . Artifact . | . . . . . Weapon 6 | 2 3 1 . . Energy Gun 2 | 1 1 . . . Energy Cannon . | . . . . . Ballistic Gun 4 | 1 2 1 . . Ballistic Cannon . | . . . . . Launcher . | . . . . . Special Weapon . | . . . . . Impact Weapon . | . . . . . Slashing Weapon . | . . . . . Piercing Weapon . | . . . . . Special Melee Weapon . | . . . . . Unidentified Prototypes . | . . . . . Parts Lost 2 | . . . . 2 Power . | . . . . . Propulsion 1 | . . . . 1 Utility . | . . . . . Weapon 1 | . . . . 1 Highest Loss Streak 2 | . . . . 2 To Critical Strikes . | . . . . . Average Backups . | . . . . . Power . | . . . . . Propulsion . | . . . . . Utility . | . . . . . Weapon . | . . . . . Tool/Special . | . . . . . Unused Backups . | . . . . . Power . | . . . . . Propulsion . | . . . . . Utility . | . . . . . Weapon . | . . . . . Tool/Special . | . . . . . Average Slot Usage (%) 62 | . 33 70 83 81 Engine 9 | . . 11 16 16 Flight 19 | . . 24 33 33 Energy Gun 3 | . 14 . . . Ballistic Gun 28 | . 18 33 33 31 Peak Build Rating 5 | 2 2 5 5 5 Average Rating 3 | . 1 4 5 4 On Entrance 2 | . 2 2 5 5 Naked Turns . | . . . . . Heaviest Build 5 | 3 3 5 5 5 Greatest Support 8 | 3 3 8 8 8 Greatest Overweight (x) 1 | . . 1 . . Average Overweight (x) . | . . . . . Largest Inventory Capacity . | . . . . . Average Capacity . | . . . . . Most Carried . | . . . . . Average Carried . | . . . . . Final Capacity . | . . . . . Final Carried . | . . . . . Class Distribution -------------------- 100% | Hacker-Mutant Dominant Class ---------------- Hacker-Mutant | -10/Materials Hacker-Mutant | -9/Materials Hacker-Mutant | -8/Materials Hacker-Mutant | -7/Factory Resources | -11 -10 -9 -8 -7 ----------- Run | Yrd Mat Mat Mat Fac Matter Collected 500 | 200 98 202 . . Remotely . | . . . . . Salvage Created 838 | . 380 376 . 82 Parts 60 | . 19 37 . 4 Haulers Intercepted . | . . . . . Recyclers Shooed . | . . . . . Parts Field Recycled . | . . . . . Retrieved Matter . | . . . . . Parts Self-Destructed . | . . . . . Prevented . | . . . . . Kills | -11 -10 -9 -8 -7 ------- Run | Yrd Mat Mat Mat Fac Combat Hostiles Destroyed 27 | . 8 17 . 2 Guns 27 | . 8 17 . 2 Classes Destroyed 3 | . 1 2 . . Swarmer 4 | . . 4 . . Grunt 22 | . 8 12 . 2 Duelist 1 | . . 1 . . Best Kill Streak 4 | . 4 4 . 2 Combat Bots Only 4 | . 4 4 . 2 Max Kills in Single Turn 1 | . 1 1 . 1 Gunslinging . | . . . . . Exploded . | . . . . . Melee . | . . . . . Uniques/NPCs Destroyed . | . . . . . Combat | -11 -10 -9 -8 -7 -------- Run | Yrd Mat Mat Mat Fac Hostile Shots Fired 193 | . 41 119 15 18 Missed 71 | . 12 47 6 6 Hits 122 | . 29 72 9 12 Melee 5 | . . . . 5 Projectile 117 | . 29 72 9 7 Critical Strikes 4 | . 1 2 1 . Damage Taken 1568 | . 359 786 155 268 Core 1331 | . 317 655 139 220 Absorbed by Shields . | . . . . . Redirected to Core 767 | . 130 422 48 167 Core Remaining (%) 68 | 100 67 65 42 . Volleys Fired 119 | . 28 71 . 20 Largest 2 | . 2 2 . 2 Hottest 70 | . 70 40 . 40 Shots Fired 234 | . 56 142 . 36 Gun 234 | . 56 142 . 36 Cannon . | . . . . . Launcher . | . . . . . Special . | . . . . . Kinetic 226 | . 48 142 . 36 Thermal 8 | . 8 . . . Explosive . | . . . . . Electromagnetic . | . . . . . Robot Hit Streak 14 | . 14 10 . 7 Robot Miss Streak 5 | . 2 5 . 2 Penetration Max . | . . . . . Secondary Targets 3 | . . 3 . . Max Gunslinging Chain 1 | . . 1 . . Shots Hit Robots 164 | . 41 94 . 29 Core Hits 70 | . 20 39 . 11 Critical Kills . | . . . . . Critical Parts Destroyed 1 | . . 1 . . Critical Strikes 2 | . 1 1 . . Burn 1 | . 1 . . . Destroy 1 | . . 1 . . Melee Attacks . | . . . . . Impact . | . . . . . Slashing . | . . . . . Piercing . | . . . . . Sneak Attacks . | . . . . . Combat Hostiles . | . . . . . Follow-up Attacks . | . . . . . Damage Inflicted 1419 | . 389 792 . 238 Guns 1419 | . 389 792 . 238 Cannons . | . . . . . Explosions . | . . . . . Melee . | . . . . . Ramming . | . . . . . Kinetic 1357 | . 327 792 . 238 Thermal 62 | . 62 . . . Explosive . | . . . . . Electromagnetic . | . . . . . Impact . | . . . . . Slashing . | . . . . . Piercing . | . . . . . Highest Corruption 9 | . . . . 9 Average Corruption 4 | . . . . 4 Corruption Purged . | . . . . . Corruption Blocked . | . . . . . Effects 1 | . . . . 1 Message Errors 1 | . . . . 1 Overload Shots . | . . . . . Overflow Damage . | . . . . . Projectiles . | . . . . . Explosions . | . . . . . Melee . | . . . . . Knockbacks . | . . . . . Impact . | . . . . . Kinetic . | . . . . . Secondary . | . . . . . Self-Inflicted Damage . | . . . . . Shots . | . . . . . Rammed . | . . . . . Targets Rammed . | . . . . . Kicked . | . . . . . Crushed . | . . . . . Highest Temperature 92 | . 92 62 6 29 Average Temperature 15 | . 28 13 6 11 Received Heat Transfer 669 | . 216 372 18 63 Siege Activations . | . . . . . Martial Activations . | . . . . . Shielding Activations . | . . . . . Robots Disrupted . | . . . . . Combat Hostiles . | . . . . . Robots Corrupted . | . . . . . Combat Hostiles . | . . . . . Parts Fried . | . . . . . Impact Corruptions . | . . . . . Robots Melted . | . . . . . Combat Hostiles . | . . . . . Parts Melted 1 | . 1 . . . Heat Transferred 259 | . 259 . . . Parts Sabotaged . | . . . . . Parts Stolen . | . . . . . Parts Stripped . | . . . . . Power Chain Reactions . | . . . . . Alert | -11 -10 -9 -8 -7 ------- Run | Yrd Mat Mat Mat Fac Maximum Alert Level 2 | . . 2 . . Low Security (%) 69 | 100 100 43 100 100 Level 1 28 | . . 52 . . Level 2 2 | . . 4 . . Level 3 . | . . . . . Level 4 . | . . . . . Level 5 . | . . . . . High Security . | . . . . . Max Security . | . . . . . Peak Influence 408 | . 110 408 169 107 Initial 169 | . . 46 169 72 Average 138 | . 39 206 165 78 Influence Increases 815 | . 200 560 . 55 Destroy 0b10 Robot/C 540 | . 160 340 . 40 Destroy Leader 110 | . 40 70 . . Partial Spotted 15 | . . 15 . . Lose Combat Pursuer 150 | . . 135 . 15 Influence Decreases 748 | . 90 270 241 147 Entered New Map 382 | . . 64 231 87 Time Decay 346 | . 90 206 10 40 Lost Part 20 | . . . . 20 Squads Dispatched 5 | . 2 3 . . Investigation 1 | . 1 . . . Extermination . | . . . . . Reinforcement 4 | . 1 3 . . Assault . | . . . . . Garrison . | . . . . . Intercept . | . . . . . Searches Triggered . | . . . . . Construction Impeded . | . . . . . Haulers Reinforced . | . . . . . Active Scanning Responses . | . . . . . Cargo Convoy Interrupts . | . . . . . Stealth | -11 -10 -9 -8 -7 --------- Run | Yrd Mat Mat Mat Fac Distress Signals 2 | . . 2 . . Communications Jammed . | . . . . . Distress Signals . | . . . . . Times Spotted 55 | . 10 31 10 4 Peak Tracking Total 10 | . 4 7 10 4 Tactical Retreats 6 | . . 5 . 1 Traps | -11 -10 -9 -8 -7 ------- Run | Yrd Mat Mat Mat Fac Traps Triggered 1 | . 1 . . . Indirectly . | . . . . . Trap Hack Attempts . | . . . . . Triggered . | . . . . . Disarmed . | . . . . . Reprogrammed . | . . . . . Reused . | . . . . . Traps Extracted . | . . . . . Installed . | . . . . . Triggered . | . . . . . Machines | -11 -10 -9 -8 -7 ---------- Run | Yrd Mat Mat Mat Fac Machines Disabled . | . . . . . Max in Single Turn . | . . . . . Machines Repaired . | . . . . . Machines Dismantled . | . . . . . Machines Sabotaged . | . . . . . Overloaded Fab Kills . | . . . . . Hacking | -11 -10 -9 -8 -7 --------- Run | Yrd Mat Mat Mat Fac Machines Accessed 1 | . . . 1 . Terminals 1 | . . . 1 . Fabricators . | . . . . . Repair Stations . | . . . . . Recycling Units . | . . . . . Scanalyzers . | . . . . . Garrison Access . | . . . . . Total Hacks 1 | . . . 1 . Successful 1 | . . . 1 . Failed . | . . . . . Catastrophic . | . . . . . Database Lockouts . | . . . . . Manual 1 | . . . 1 . Terminals 1 | . . . 1 . Fabricators . | . . . . . Repair Stations . | . . . . . Recycling Units . | . . . . . Scanalyzers . | . . . . . Garrison Access . | . . . . . Terminal Hacks 1 | . . . 1 . Level Access Points 1 | . . . 1 . Fabricator Hacks . | . . . . . Repair Station Hacks . | . . . . . Recycling Unit Hacks . | . . . . . Scanalyzer . | . . . . . Garrison Access Hacks . | . . . . . Unauthorized Hacks . | . . . . . Terminals . | . . . . . Fabricators . | . . . . . Repair Stations . | . . . . . Recycling Units . | . . . . . Scanalyzers . | . . . . . Garrison Access . | . . . . . Data Cores Recovered . | . . . . . Used . | . . . . . Hacking Detections . | . . . . . Full Trace Events . | . . . . . Feedback Events . | . . . . . Feedback Blocked . | . . . . . Robot Schematics Acquired . | . . . . . Robots Built . | . . . . . Authchips . | . . . . . Time . | . . . . . Total Robot Build Rating . | . . . . . Part Schematics Acquired . | . . . . . Parts Built . | . . . . . Authchips . | . . . . . Time . | . . . . . Total Part Build Rating . | . . . . . Parts Repaired . | . . . . . Time . | . . . . . Parts Recycled . | . . . . . Recycled Matter . | . . . . . Retrieved Matter . | . . . . . Retrieved Components . | . . . . . Parts Scanalyzed . | . . . . . Part Schematics Acquired . | . . . . . Parts Damaged . | . . . . . Bothacking | -11 -10 -9 -8 -7 ------------ Run | Yrd Mat Mat Mat Fac Used RIF Installer . | . . . . . Robots Hacked . | . . . . . Non-combat . | . . . . . Combat . | . . . . . Robot Hacks Applied . | . . . . . Relay Couplers Released . | . . . . . Fabnet Peak Effective % . | . . . . . Robots Rewired . | . . . . . Allies Hacked . | . . . . . Hacks Repelled . | . . . . . Allies | -11 -10 -9 -8 -7 -------- Run | Yrd Mat Mat Mat Fac Total Allies . | . . . . . Largest Group . | . . . . . Highest-Rated Group . | . . . . . Highest-Rated Ally . | . . . . . Total Orders . | . . . . . Ally Attacks . | . . . . . Total Damage . | . . . . . Kills . | . . . . . Allies Corrupted . | . . . . . Allies Melted . | . . . . . Intel | -11 -10 -9 -8 -7 ------- Run | Yrd Mat Mat Mat Fac Active Infowar (turns) . | . . . . . Robot Analysis Total . | . . . . . Derelict Logs Recovered . | . . . . . Drone Launches . | . . . . . Drone Recoveries . | . . . . . Exploration | -11 -10 -9 -8 -7 ------------- Run | Yrd Mat Mat Mat Fac Turns Passed 775 | 29 207 421 31 87 Spaces Moved 742 | 53 215 340 82 52 Core 358 | 53 215 90 . . Treads . | . . . . . Legs . | . . . . . Wheels . | . . . . . Hover . | . . . . . Flight 384 | . . 250 82 52 Fastest Speed 37 | 50 50 37 37 37 Average Speed 43 | 50 50 40 37 37 Slowest Speed 120 | 50 50 120 37 37 Overloaded Moves . | . . . . . Propulsion Burnouts . | . . . . . Robots Hopped 11 | . . 5 4 2 Potential Cave-ins . | . . . . . Cave-ins Triggered . | . . . . . Exploration Rate (%) 18 | 3 35 36 15 1 Regions Visited 4 Branch Regions . Pre-discovered Areas . | . . . . . Known Exits Taken 1 | . . . 1 . Unknown Exits Taken 3 | 1 1 1 . . Scrap Searched . | . . . . . Spaces Dug . | . . . . . Terrain Destroyed . | . . . . . Melee . | . . . . . Projectile . | . . . . . AOE . | . . . . . Terrain Rammed . | . . . . . Walls Destroyed . | . . . . . Machines Disabled . | . . . . . Actions | -11 -10 -9 -8 -7 --------- Run | Yrd Mat Mat Mat Fac Total 990 | 54 267 503 78 88 Wait 90 | . 12 59 1 18 Move 720 | 52 214 330 75 49 Hop 7 | . . 4 2 1 Pick Up . | . . . . . Fast Attach 8 | 2 3 3 . . Attach . | . . . . . Detach . | . . . . . Swap 3 | . . 3 . . Drop 6 | . 3 3 . . Fire 119 | . 28 71 . 20 Melee . | . . . . . Ram . | . . . . . Kick . | . . . . . Crush . | . . . . . Escape Stasis . | . . . . . Rewire . | . . . . . Trap . | . . . . . Miscellaneous 37 | . 7 30 . . Route ------- -11/Scrapyard -10/Materials (discovered 2 exits: [*Mat] / [*Min]) -9/Materials (discovered 2 exits: *Mat / [*Min]) -8/Materials (discovered 3 exits: *Fac x3) -7/Factory History --------- Turn | Location | Event 9 | -11/Scrapyard | Discovered new exit (range 12) 16 | -11/Scrapyard | Upgraded with Propulsion slot (x1) 16 | -11/Scrapyard | Upgraded with Weapon slot (x1) 30 | -11/Scrapyard | Entered Materials 190 | -10/Materials | Discovered new exit (range 7) 223 | -10/Materials | Discovered new exit (range 11) 237 | -10/Materials | Entered another Materials area 239 | -9/Materials | Reached level 2 317 | -9/Materials | Build established: Hacker-Mutant 331 | -9/Materials | Reached level 3 369 | -9/Materials | Core integrity fell below 50% 387 | -9/Materials | Discovered new exit (range 8) 638 | -9/Materials | Reached level 4 656 | -9/Materials | Discovered new exit (range 5) 658 | -9/Materials | Entered another Materials area 660 | -8/Materials | Reached level 5 671 | -8/Materials | Identified exit to Factory 686 | -8/Materials | Core integrity fell below 50% 689 | -8/Materials | Entered Factory 690 | -7/Factory | Core integrity fell below 50% 691 | -7/Factory | Reached level 6 755 | -7/Factory | Core integrity fell below 20% 776 | -7/Factory | Self-destructed Last Messages --------------- Current location identified: Materials >>Access(Main) Found 3 level access points to Factory: (45,86) (8,55) (52,13) Map updated. Knocked back. U-05 Engineer builds a Wall. LOCATION=FACTORY GOAL=ESCAPE Reached level 6. ALERT: All DSF locations entering lockdown mode. G-47 Trooper destroyed. Lgt. Assault Rifle destroyed. System corrupted by crushing effect (+4). Knocked back. WOGEBW1>W2T&HA5WGA0SY LMH Flight Unit destroyed. System corrupted by crushing effect (+5). Map ----- +----------------------------------------------------+ | ?????????????????????????????????????????? | | ?????????????????????????????????????????? | | ????????????????? ???????????????????? | | ????????????????+ ??????????????????? | | ????????????????# ??????????????????? | | ????????????????# #??????????????????? | | ????????????????# #??????????????????? | | ????????????????# #??????????????????? | | ????????????????# #??????????????????? | | ????????????????# #??????????????????? | | ???????########## #??????????????????? | | ???????# # #??????????????????? | | ???????# # #??????????????????? | | ???????# # #??????????????????? | | ???????# # #??????????????????? | | ???????# [[!# #??????????????????? | | ???????# [! # #??????????????????? | | ???????# [! # #??????????????????? | | ???????# # #??????????????????? | | ???????# # #??????????????????? | | ???????####+##### #??????????????????? | | ???????# #??????????????????? | | ???????# #??????????????????? | | ???????# #??????????????????? | | ???????# * #??????????????????? | | ???????# @%[ #??????????????????? | | ???????####+######b########??????????????? | | ????????? ??#=%g #??????????????? | | ???????# """"# #??????????????? | | ???????# """"# #??????????????? | | ???????# [ """"# #??????????????? | | ???????# """"# """"""" #??????????????? | | ???????# """?# """"""" #??????????????? | | ???????# ""??# """"""" #??????????????? | | ???????# "???# """"""" #??????????????? | | ???????# ???#######???#??????????????? | | ???????######????????????????????????????? | | ?????????????????????????????????????????? | | ?????????????????????????????????????????? | | ?????????????????????????????????????????? | | ?????????????????????????????????????????? | | ?????????????????????????????????????????? | | ?????????????????????????????????????????? | | ?????????????????????????????????????????? | | ?????????????????????????????????????????? | | ?????????????????????????????????????????? | | ?????????????????????????????????????????? | | ?????????????????????????????????????????? | | ?????????????????????????????????????????? | | ?????????????????????????????????????????? | +----------------------------------------------------+ Best States ------------- Heat Dissipation 25 Energy Generation 10 Energy Capacity 125 Matter Stores 300 Matter Capacity 300 Sight Range 16 Terrain Scan Density 10 Evasion (%) 62 Offensive Hacking 40 Item Schematics ----------------- None Robot Schematics ------------------ None Fabricated ------------ Nothing Repaired ---------- Nothing Alien Tech Used ----------------- None Achievements -------------- None Challenges ------------ None RPGLIKE | -11 -10 -9 -8 -7 --------- Run | Yrd Mat Mat Mat Fac Levels Raised 5 | . . 3 1 1 XP Earned 10754 | 3000 1000 3554 1500 1700 XP Spent 8200 | 3000 . . 5200 . Upgrades 10 | 6 . . 4 . Propulsion Slot 1 | 1 . . . . Weapon Slot 1 | 1 . . . . Hack Attack % 8 | 4 . . 4 . Protomatter Created 353 | . 43 275 . 35 Integrity Restored 772 | . 127 645 . . Core 766 | . 121 645 . . Parts 6 | . 6 . . . Protomatter Decayed 30 | . . 30 . . Game ------ Seed SpacefoldGodSpiker Manual? 0 Play Time 00:07:12 Cumulative 260.6 hours Start 2025.06.06 @ 16:24:34 End 2025.06.06 @ 16:34:36 Sessions 3 Manual Loads 0 Difficulty Rogue Special Mode Winter2019/RPGLIKE Game No. 261 Rogue 72 Adventurer 177 Explorer 12 Win Type - Total 65 Types 19/1/16/2/12/0/4/5/0/6 Lore% 54 Gallery% 53 Achievement% 71 Wizard Run 0 Options --------- Layout 0 ASCII 0 Keyboard 0 Movement Numpad Keybinds 0 Fullscreen 2 Font 12/Smallcaps Map View 83x54 Zoom Use 0% Tactical HUD 0 Map Filters NONE Filters NONE Steam 1 RUN: 5927e4cd-3ea1-413d-b95b-1052c6500f68